Cogmind - Beta 15 @@@ ROGUE MODE // 2025.08.21 @ 17:34:47 Player: Leif Result: Destroyed by H-77 Assassin with Coil Gun Performance ------------- Evolutions (7) 3500 Regions Visited (12) 2400 Robots Destroyed (22) 110 Value Destroyed (730) 730 Prototype IDs (0) 0 Alien Tech Used (0) 0 Bonus (500) 500 TOTAL SCORE: 7240 Bonus ------- Entered DSFs 500 Cogmind --------- Core Integrity 0/1300 Matter 285/300 Energy 98/100 System Corruption 0% Temperature Cool (9) Movement Core (50) Location -3/Research Parts ------- > --- POWER (3) -------- (None) > --- PROPULSION (10) -- (None) > --- UTILITY (4) ------ Advanced Signal Interpreter > --- WEAPON (4) ------- (None) > --- INVENTORY (5) ---- Advanced Cryofiber Web Peak State ------------ > --- POWER ------------ Light Angular Momentum Engine > --- PROPULSION ------- Nuclear Pulse Array Nuclear Pulse Array Nuclear Pulse Array > --- UTILITY ---------- Enhanced Optical Array Advanced Signal Interpreter Medium Reactive Plating EM Shield > --- WEAPON ----------- Spear > --- INVENTORY -------- Fission Core [Rating: 64] Favorites ----------- Power Ion Engine Engine Ion Engine Power Core Fission Core Propulsion Light Treads Treads Light Treads Leg Aluminum Leg Flight Unit Cesium-ion Thruster Utility Visual Processing Unit Device EM Shield Storage Small Storage Unit Processor Visual Processing Unit Protection Medium Reactive Plating Weapon Small Laser Energy Gun Small Laser Energy Cannon Heavy Particle Cannon Ballistic Cannon Gauss Cannon Piercing Weapon Spear Build | -11 -10 -9 -9 -8 -7 -7 -6 -5 -5 -5 -4 -3 ------- Run | Yrd Mat Mat Min Mat Fac DSF Fac Fac Was Fac Fac Res Slots Evolved 14 | . . 2 . 2 2 . 2 2 . . 2 2 Power 2 | . . . . . . . . . . . . 2 Propulsion 8 | . . 1 . 2 1 . 2 2 . . . . Utility 2 | . . . . . . . . . . . 2 . Weapon 2 | . . 1 . . 1 . . . . . . . Parts Attached 42 | 6 . 2 . 8 4 2 12 1 . 4 1 2 Power 5 | 1 . . . 1 . . 2 . . 1 . . Engine 3 | 1 . . . 1 . . . . . 1 . . Core 2 | . . . . . . . 2 . . . . . Reactor . | . . . . . . . . . . . . . Propulsion 25 | 2 . . . 6 3 2 7 . . 3 . 2 Treads 12 | . . . . 6 3 2 1 . . . . . Leg 5 | 2 . . . . . . 3 . . . . . Wheel . | . . . . . . . . . . . . . Hover . | . . . . . . . . . . . . . Flight 8 | . . . . . . . 3 . . 3 . 2 Utility 6 | 1 . 1 . . . . 2 1 . . 1 . Device 1 | . . . . . . . . . . . 1 . Storage 1 | 1 . . . . . . . . . . . . Processor 3 | . . 1 . . . . 1 1 . . . . Hackware . | . . . . . . . . . . . . . Protection 1 | . . . . . . . 1 . . . . . Artifact . | . . . . . . . . . . . . . Weapon 6 | 2 . 1 . 1 1 . 1 . . . . . Energy Gun 3 | 2 . 1 . . . . . . . . . . Energy Cannon 1 | . . . . 1 . . . . . . . . Ballistic Gun . | . . . . . . . . . . . . . Ballistic Cannon 1 | . . . . . 1 . . . . . . . Launcher . | . . . . . . . . . . . . . Special Weapon . | . . . . . . . . . . . . . Impact Weapon . | . . . . . . . . . . . . . Slashing Weapon . | . . . . . . . . . . . . . Piercing Weapon 1 | . . . . . . . 1 . . . . . Special Melee Weapon . | . . . . . . . . . . . . . Unidentified Prototypes . | . . . . . . . . . . . . . Parts Lost 31 | . . 1 . . . 5 13 1 . 2 6 3 Power 3 | . . . . . . 1 . . . . 2 . Propulsion 21 | . . . . . . 3 10 1 . 2 3 2 Utility 2 | . . . . . . . . . . . 1 1 Weapon 5 | . . 1 . . . 1 3 . . . . . Highest Loss Streak 7 | . . 1 . . . 3 7 1 . 2 2 3 To Critical Strikes . | . . . . . . . . . . . . . Average Backups 2 | 2 6 5 8 3 3 3 . 3 4 3 . . Power . | . 1 1 1 . . . . 1 1 1 . . Propulsion 1 | 1 4 4 7 3 3 3 . . . . . . Utility . | . . . . . . . . 1 2 2 . . Weapon . | . 1 . . . . . . . 1 . . . Tool/Special . | . . . . . . . . . . . . . Unused Backups 2 | . . 2 . . . . . . . . . . Power . | . . . . . . . . . . . . . Propulsion 2 | . . 2 . . . . . . . . . . Utility . | . . . . . . . . . . . . . Weapon . | . . . . . . . . . . . . . Tool/Special . | . . . . . . . . . . . . . Average Slot Usage (%) 62 | . 85 79 77 95 94 89 38 35 29 41 35 9 Engine 5 | . 14 11 11 9 7 6 . . . 4 1 . Treads 17 | . . . . 43 43 40 14 . . . . . Leg 4 | . 28 22 22 . . . 2 . . . . . Flight 3 | . . . . . . . 3 14 11 20 11 . Storage 5 | . 14 11 11 9 7 7 2 . . . . . Processor 8 | . . 9 11 9 7 7 6 11 11 11 10 8 Energy Gun 9 | . 28 26 22 15 15 10 1 . . . . . Energy Cannon 2 | . . . . 7 7 7 1 . . . . . Ballistic Cannon 1 | . . . . . 4 7 1 . . . . . Peak Build Rating 64 | 6 6 9 8 15 24 25 28 29 22 62 64 32 Average Rating 18 | 4 6 8 8 13 22 22 14 24 22 49 47 11 On Entrance 17 | . 6 6 8 8 15 24 20 25 22 22 56 10 Naked Turns . | . . . . . . . . . . . . . Heaviest Build 33 | 12 12 13 11 19 26 26 32 12 10 11 33 . Greatest Support 148 | 20 20 20 20 102 130 130 148 15 10 49 39 23 Greatest Overweight (x) 6 | . . . . . . . 2 . . . 6 . Average Overweight (x) . | . . . . . . . . . . . . . Largest Inventory Capacity 8 | 8 8 8 8 8 8 8 8 5 5 5 5 5 Average Capacity 6 | 7 8 8 8 8 8 8 6 5 5 5 5 5 Most Carried 8 | 6 6 8 8 8 6 5 5 4 4 5 2 3 Average Carried 2 | 2 6 5 8 3 3 3 . 3 4 3 . . Final Capacity 8 | 8 8 8 8 8 8 8 5 5 5 5 5 5 Final Carried 8 | 6 6 8 8 4 3 3 2 4 4 3 . 1 Class Distribution -------------------- 52% | Mutant 33% | Skirmisher 12% | Sprinter Dominant Class ---------------- Mutant | -10/Materials Mutant | -9/Materials Mutant | -9/Mines Skirmisher | -8/Materials Skirmisher | -7/Factory Skirmisher | -7/DSF Mutant | -6/Factory Sprinter | -5/Factory Sprinter | -5/Waste Sprinter | -5/Factory Mutant | -4/Factory Mutant | -3/Research Resources | -11 -10 -9 -9 -8 -7 -7 -6 -5 -5 -5 -4 -3 ----------- Run | Yrd Mat Mat Min Mat Fac DSF Fac Fac Was Fac Fac Res Matter Collected 722 | 260 . 46 . 80 . 148 . . . 33 155 . Remotely . | . . . . . . . . . . . . . Salvage Created 790 | . 47 134 89 268 . 164 55 . . 33 . . Parts 47 | . 3 3 7 21 . 9 3 . . 1 . . Haulers Intercepted . | . . . . . . . . . . . . . Recyclers Shooed . | . . . . . . . . . . . . . Parts Field Recycled . | . . . . . . . . . . . . . Retrieved Matter . | . . . . . . . . . . . . . Parts Self-Destructed . | . . . . . . . . . . . . . Prevented . | . . . . . . . . . . . . . Kills | -11 -10 -9 -9 -8 -7 -7 -6 -5 -5 -5 -4 -3 ------- Run | Yrd Mat Mat Min Mat Fac DSF Fac Fac Was Fac Fac Res Combat Hostiles Destroyed 20 | . 3 3 2 7 . 4 1 . . . . . Melee 1 | . . . . . . 1 . . . . . . Guns 12 | . 3 2 2 5 . . . . . . . . Cannons 5 | . . . . 2 . 2 1 . . . . . Classes Destroyed 8 | . 1 1 1 3 . 2 . . . . . . Watcher 2 | . . . . 1 . . . . . 1 . . Swarmer 7 | . 3 . . 4 . . . . . . . . Grunt 5 | . . 3 1 . . 1 . . . . . . Brawler 2 | . . . 1 . . . 1 . . . . . Sentry 2 | . . . . 2 . . . . . . . . Specialist 2 | . . . . . . 2 . . . . . . Hunter 1 | . . . . 1 . . . . . . . . Heavy 1 | . . . . . . 1 . . . . . . Best Kill Streak 4 | . 3 3 2 4 . 3 1 . . 1 . . Combat Bots Only 4 | . 3 3 2 4 . 3 1 . . . . . Max Kills in Single Turn 1 | . 1 1 1 1 . 1 1 . . 1 . . Gunslinging . | . . . . . . . . . . . . . Exploded . | . . . . . . . . . . . . . Melee 1 | . . . . . . 1 . . . . . . Uniques/NPCs Destroyed . | . . . . . . . . . . . . . Combat | -11 -10 -9 -9 -8 -7 -7 -6 -5 -5 -5 -4 -3 -------- Run | Yrd Mat Mat Min Mat Fac DSF Fac Fac Was Fac Fac Res Hostile Shots Fired 660 | . 11 16 7 54 . 116 124 3 . 24 180 125 Missed 274 | . 3 2 3 16 . 43 47 1 . 13 98 48 Hits 386 | . 8 14 4 38 . 73 77 2 . 11 82 77 Melee 3 | . . . 1 . . 1 1 . . . . . Projectile 383 | . 8 14 3 38 . 72 76 2 . 11 82 77 Critical Strikes 12 | . . . . 1 . 5 3 . . 1 . 2 Damage Taken 6780 | . 64 177 63 445 . 1347 1482 135 . 233 1306 1528 Core 2879 | . 8 67 11 74 . 171 389 95 . 65 695 1304 Absorbed by Shields . | . . . . . . . . . . . . . Ignored by Resistances 202 | . . . . . . . . . . . 202 . Core Remaining (%) 76 | 100 96 . 80 86 . 75 54 . . 84 39 . Volleys Fired 57 | . 5 14 4 20 . 10 4 . . . . . Largest 4 | . 2 3 2 3 . 4 3 . . . . . Hottest 205 | . 90 130 90 165 . 205 155 . . . . . Shots Fired 132 | . 10 28 8 46 . 29 11 . . . . . Gun 85 | . 10 28 8 26 . 9 4 . . . . . Cannon 47 | . . . . 20 . 20 7 . . . . . Launcher . | . . . . . . . . . . . . . Special . | . . . . . . . . . . . . . Kinetic 14 | . . . . . . 10 4 . . . . . Thermal 106 | . 5 21 8 46 . 19 7 . . . . . Explosive . | . . . . . . . . . . . . . Electromagnetic 12 | . 5 7 . . . . . . . . . . Robot Hit Streak 19 | . 2 12 5 13 . 19 5 . . . . . Robot Miss Streak 3 | . 3 2 1 3 . 2 1 . . . . . Penetration Max . | . . . . . . . . . . . . . Secondary Targets 2 | . 1 . 1 . . . . . . . . . Max Gunslinging Chain 1 | . 1 . 1 . . . . . . . . . Shots Hit Robots 95 | . 4 21 6 30 . 17 10 . . 7 . . Core Hits 37 | . 3 6 4 12 . 5 5 . . 2 . . Critical Kills 1 | . . . . . . 1 . . . . . . Critical Parts Destroyed . | . . . . . . . . . . . . . Critical Strikes 7 | . . 2 1 1 . 3 . . . . . . Burn 4 | . . 2 1 1 . . . . . . . . Meltdown 1 | . . . . . . 1 . . . . . . Blast 2 | . . . . . . 2 . . . . . . Melee Attacks 9 | . . . . . . . 1 . . 8 . . Impact . | . . . . . . . . . . . . . Slashing . | . . . . . . . . . . . . . Piercing 9 | . . . . . . . 1 . . 8 . . Sneak Attacks . | . . . . . . . . . . . . . Combat Hostiles . | . . . . . . . . . . . . . Follow-up Attacks . | . . . . . . . . . . . . . Damage Inflicted 1867 | . 61 260 81 479 . 463 246 . . 277 . . Guns 733 | . 61 260 81 229 . 67 35 . . . . . Cannons 800 | . . . . 250 . 393 157 . . . . . Explosions . | . . . . . . . . . . . . . Melee 315 | . . . . . . . 38 . . 277 . . Ramming 19 | . . . . . . 3 16 . . . . . Kinetic 275 | . . . . . . 193 82 . . . . . Thermal 1141 | . 25 179 81 479 . 267 110 . . . . . Explosive . | . . . . . . . . . . . . . Electromagnetic 117 | . 36 81 . . . . . . . . . . Impact . | . . . . . . . . . . . . . Slashing . | . . . . . . . . . . . . . Piercing 315 | . . . . . . . 38 . . 277 . . Highest Corruption 10 | . 3 . . . . . 4 . 9 10 6 . Average Corruption 5 | . 2 . . . . . 3 . 9 9 2 . Corruption Purged . | . . . . . . . . . . . . . Corruption Blocked . | . . . . . . . . . . . . . Effects 17 | . . . . . . . 10 . 1 4 2 . Message Errors 2 | . . . . . . . 2 . . . . . Matter Fused 4 | . . . . . . . 2 . . 1 1 . Heat Flow Errors 3 | . . . . . . . 1 . 1 1 . . Energy Discharges 3 | . . . . . . . 2 . . 1 . . Parts Rejected 2 | . . . . . . . 1 . . . 1 . Data Loss (minor) 2 | . . . . . . . 2 . . . . . Data Loss (major) 1 | . . . . . . . . . . 1 . . Overload Shots . | . . . . . . . . . . . . . Overflow Damage 5 | . . . . . . . . . . 5 . . Projectiles . | . . . . . . . . . . . . . Explosions . | . . . . . . . . . . . . . Melee 5 | . . . . . . . . . . 5 . . Knockbacks . | . . . . . . . . . . . . . Impact . | . . . . . . . . . . . . . Kinetic . | . . . . . . . . . . . . . Secondary . | . . . . . . . . . . . . . Self-Inflicted Damage 1 | . . . . . . . 1 . . . . . Shots . | . . . . . . . . . . . . . Rammed 3 | . . . . . . 1 1 . . . . 1 Targets Rammed 9 | . . . . . . 2 6 . . . . 1 Kicked 5 | . . . . . . . 5 . . . . . Crushed 1 | . . . . . . 1 . . . . . . Highest Temperature 455 | . 150 455 102 270 . 57 292 . 265 240 . . Average Temperature 132 | . 75 279 53 109 . 14 151 . 169 100 . . Received Heat Transfer 1287 | . . 93 18 72 . 297 687 18 . 54 30 18 Effects 7 | . . 7 . . . . . . . . . . Shutdowns 2 | . . 2 . . . . . . . . . . Energy Bleed 1 | . . 1 . . . . . . . . . . Interference 3 | . . 3 . . . . . . . . . . Matter Decay 1 | . . 1 . . . . . . . . . . Siege Activations . | . . . . . . . . . . . . . Martial Activations . | . . . . . . . . . . . . . Shielding Activations . | . . . . . . . . . . . . . Robots Disrupted . | . . . . . . . . . . . . . Combat Hostiles . | . . . . . . . . . . . . . Robots Corrupted . | . . . . . . . . . . . . . Combat Hostiles . | . . . . . . . . . . . . . Parts Fried . | . . . . . . . . . . . . . Impact Corruptions . | . . . . . . . . . . . . . Robots Melted 2 | . . 1 . . . 1 . . . . . . Combat Hostiles 2 | . . 1 . . . 1 . . . . . . Parts Melted 8 | . . 3 . 4 . . 1 . . . . . Heat Transferred 2734 | . 74 643 297 1064 . 470 186 . . . . . Parts Sabotaged . | . . . . . . . . . . . . . Parts Stolen . | . . . . . . . . . . . . . Parts Stripped . | . . . . . . . . . . . . . Power Chain Reactions . | . . . . . . . . . . . . . Alert | -11 -10 -9 -9 -8 -7 -7 -6 -5 -5 -5 -4 -3 ------- Run | Yrd Mat Mat Min Mat Fac DSF Fac Fac Was Fac Fac Res Maximum Alert Level . | . . . . . . . . . . . . . Low Security (%) 100 | 100 100 100 100 100 100 100 100 100 100 100 100 100 Level 1 . | . . . . . . . . . . . . . Level 2 . | . . . . . . . . . . . . . Level 3 . | . . . . . . . . . . . . . Level 4 . | . . . . . . . . . . . . . Level 5 . | . . . . . . . . . . . . . High Security . | . . . . . . . . . . . . . Max Security . | . . . . . . . . . . . . . Peak Influence 170 | . 77 50 50 105 39 70 119 28 1 105 170 86 Initial 86 | . . 24 . 3 39 3 31 28 1 . 46 86 Average 28 | . 32 19 26 16 9 35 41 17 . 23 66 41 Influence Increases 1230 | . 97 70 50 207 5 90 224 15 . 157 255 60 Destroy 0b10 Robot/C 400 | . 60 60 40 140 . 80 20 . . . . . Destroy 0b10 Robot/NC 10 | . . . . 5 . . . . . 5 . . Destroy Leader 94 | . 10 10 10 42 . 10 10 . . 2 . . Successful Hack 31 | . 12 . . . 5 . 14 . . . . . Disable Machine 15 | . . . . 15 . . . . . . . . Destroy Structure 5 | . . . . 5 . . . . . . . . Partial Spotted 15 | . . . . . . . . . . 15 . . Lose Combat Pursuer 660 | . 15 . . . . . 180 15 . 135 255 60 Influence Decreases 1205 | . 40 127 40 128 89 35 225 69 5 62 185 200 Entered New Map 284 | . . 33 . 7 50 2 29 31 4 . 49 79 Time Decay 733 | . 40 80 40 121 39 . 156 28 1 42 76 110 Lost Part 184 | . . 10 . . . 33 40 10 . 20 60 11 Purge Threat 4 | . . 4 . . . . . . . . . . Squads Dispatched 11 | . 1 . . . . 2 3 . . 2 2 1 Investigation 1 | . . . . . . . . . . . 1 . Extermination 2 | . . . . . . . 1 . . . 1 . Reinforcement 7 | . 1 . . . . 2 2 . . 1 . 1 Assault . | . . . . . . . . . . . . . Garrison 1 | . . . . . . . . . . 1 . . Intercept . | . . . . . . . . . . . . . Searches Triggered . | . . . . . . . . . . . . . Construction Impeded . | . . . . . . . . . . . . . Haulers Reinforced . | . . . . . . . . . . . . . Active Scanning Responses . | . . . . . . . . . . . . . Cargo Convoy Interrupts . | . . . . . . . . . . . . . Stealth | -11 -10 -9 -9 -8 -7 -7 -6 -5 -5 -5 -4 -3 --------- Run | Yrd Mat Mat Min Mat Fac DSF Fac Fac Was Fac Fac Res Distress Signals 1 | . . . . . . . . . . . . 1 Communications Jammed . | . . . . . . . . . . . . . Distress Signals . | . . . . . . . . . . . . . Times Spotted 122 | . 7 3 2 15 . 10 20 4 4 15 29 13 Peak Tracking Total 15 | . 5 3 2 5 . 7 9 2 4 8 15 8 Tactical Retreats 14 | . 1 . . . . . 3 1 . 2 5 2 Traps | -11 -10 -9 -9 -8 -7 -7 -6 -5 -5 -5 -4 -3 ------- Run | Yrd Mat Mat Min Mat Fac DSF Fac Fac Was Fac Fac Res Traps Triggered 16 | . 2 . . 1 2 1 3 2 . 3 1 1 Indirectly . | . . . . . . . . . . . . . Trap Hack Attempts . | . . . . . . . . . . . . . Triggered . | . . . . . . . . . . . . . Disarmed . | . . . . . . . . . . . . . Reprogrammed . | . . . . . . . . . . . . . Reused . | . . . . . . . . . . . . . Traps Extracted . | . . . . . . . . . . . . . Installed . | . . . . . . . . . . . . . Triggered . | . . . . . . . . . . . . . Machines | -11 -10 -9 -9 -8 -7 -7 -6 -5 -5 -5 -4 -3 ---------- Run | Yrd Mat Mat Min Mat Fac DSF Fac Fac Was Fac Fac Res Machines Disabled 1 | . . . . 1 . . . . . . . . Max in Single Turn 1 | . . . . 1 . . . . . . . . Machines Repaired . | . . . . . . . . . . . . . Machines Dismantled . | . . . . . . . . . . . . . Machines Sabotaged . | . . . . . . . . . . . . . Overloaded Fab Kills . | . . . . . . . . . . . . . Hacking | -11 -10 -9 -9 -8 -7 -7 -6 -5 -5 -5 -4 -3 --------- Run | Yrd Mat Mat Min Mat Fac DSF Fac Fac Was Fac Fac Res Machines Accessed 5 | . 1 1 . . 1 . 1 . . 1 . . Terminals 5 | . 1 1 . . 1 . 1 . . 1 . . Fabricators . | . . . . . . . . . . . . . Repair Stations . | . . . . . . . . . . . . . Recycling Units . | . . . . . . . . . . . . . Scanalyzers . | . . . . . . . . . . . . . Garrison Access . | . . . . . . . . . . . . . Total Hacks 9 | . 2 1 . . 2 . 3 . . 1 . . Successful 5 | . 1 1 . . 1 . 2 . . . . . Failed 4 | . 1 . . . 1 . 1 . . 1 . . Catastrophic 1 | . . . . . . . . . . 1 . . Database Lockouts . | . . . . . . . . . . . . . Manual . | . . . . . . . . . . . . . Terminals 9 | . 2 1 . . 2 . 3 . . 1 . . Fabricators . | . . . . . . . . . . . . . Repair Stations . | . . . . . . . . . . . . . Recycling Units . | . . . . . . . . . . . . . Scanalyzers . | . . . . . . . . . . . . . Garrison Access . | . . . . . . . . . . . . . Terminal Hacks 5 | . 1 1 . . 1 . 2 . . . . . Record 1 | . 1 . . . . . . . . . . . Open DSF 1 | . . . . . 1 . . . . . . . Alert Level 1 | . . . . . . . 1 . . . . . Unreport Threat 1 | . . 1 . . . . . . . . . . Locate Traps 1 | . . . . . . . 1 . . . . . Fabricator Hacks . | . . . . . . . . . . . . . Repair Station Hacks . | . . . . . . . . . . . . . Recycling Unit Hacks . | . . . . . . . . . . . . . Scanalyzer . | . . . . . . . . . . . . . Garrison Access Hacks . | . . . . . . . . . . . . . Unauthorized Hacks . | . . . . . . . . . . . . . Terminals . | . . . . . . . . . . . . . Fabricators . | . . . . . . . . . . . . . Repair Stations . | . . . . . . . . . . . . . Recycling Units . | . . . . . . . . . . . . . Scanalyzers . | . . . . . . . . . . . . . Garrison Access . | . . . . . . . . . . . . . Data Cores Recovered . | . . . . . . . . . . . . . Used . | . . . . . . . . . . . . . Hacking Detections 4 | . 1 1 . . . . 1 . . 1 . . Full Trace Events . | . . . . . . . . . . . . . Feedback Events . | . . . . . . . . . . . . . Feedback Blocked . | . . . . . . . . . . . . . Robot Schematics Acquired . | . . . . . . . . . . . . . Robots Built . | . . . . . . . . . . . . . Authchips . | . . . . . . . . . . . . . Time . | . . . . . . . . . . . . . Total Robot Build Rating . | . . . . . . . . . . . . . Part Schematics Acquired . | . . . . . . . . . . . . . Parts Built . | . . . . . . . . . . . . . Authchips . | . . . . . . . . . . . . . Time . | . . . . . . . . . . . . . Total Part Build Rating . | . . . . . . . . . . . . . Parts Repaired . | . . . . . . . . . . . . . Time . | . . . . . . . . . . . . . Parts Recycled . | . . . . . . . . . . . . . Recycled Matter . | . . . . . . . . . . . . . Retrieved Matter . | . . . . . . . . . . . . . Retrieved Components . | . . . . . . . . . . . . . Parts Scanalyzed . | . . . . . . . . . . . . . Part Schematics Acquired . | . . . . . . . . . . . . . Parts Damaged . | . . . . . . . . . . . . . Bothacking | -11 -10 -9 -9 -8 -7 -7 -6 -5 -5 -5 -4 -3 ------------ Run | Yrd Mat Mat Min Mat Fac DSF Fac Fac Was Fac Fac Res Used RIF Installer . | . . . . . . . . . . . . . Robots Hacked . | . . . . . . . . . . . . . Non-combat . | . . . . . . . . . . . . . Combat . | . . . . . . . . . . . . . Robot Hacks Applied . | . . . . . . . . . . . . . Relay Couplers Released . | . . . . . . . . . . . . . Fabnet Peak Effective % . | . . . . . . . . . . . . . Robots Rewired . | . . . . . . . . . . . . . Allies Hacked . | . . . . . . . . . . . . . Hacks Repelled . | . . . . . . . . . . . . . Allies | -11 -10 -9 -9 -8 -7 -7 -6 -5 -5 -5 -4 -3 -------- Run | Yrd Mat Mat Min Mat Fac DSF Fac Fac Was Fac Fac Res Total Allies . | . . . . . . . . . . . . . Largest Group . | . . . . . . . . . . . . . Highest-Rated Group . | . . . . . . . . . . . . . Highest-Rated Ally . | . . . . . . . . . . . . . Total Orders . | . . . . . . . . . . . . . Ally Attacks . | . . . . . . . . . . . . . Total Damage . | . . . . . . . . . . . . . Kills . | . . . . . . . . . . . . . Allies Corrupted . | . . . . . . . . . . . . . Allies Melted . | . . . . . . . . . . . . . Intel | -11 -10 -9 -9 -8 -7 -7 -6 -5 -5 -5 -4 -3 ------- Run | Yrd Mat Mat Min Mat Fac DSF Fac Fac Was Fac Fac Res Active Infowar (turns) 2107 | . . 55 99 504 193 152 498 60 29 165 164 188 Optics 2107 | . . 55 99 504 193 152 498 60 29 165 164 188 Robot Analysis Total . | . . . . . . . . . . . . . Derelict Logs Recovered . | . . . . . . . . . . . . . Drone Launches . | . . . . . . . . . . . . . Drone Recoveries . | . . . . . . . . . . . . . Exploration | -11 -10 -9 -9 -8 -7 -7 -6 -5 -5 -5 -4 -3 ------------- Run | Yrd Mat Mat Min Mat Fac DSF Fac Fac Was Fac Fac Res Turns Passed 2492 | 84 114 204 99 504 193 152 498 60 29 165 164 226 Spaces Moved 2655 | 67 81 113 73 167 112 72 559 181 91 432 400 307 Core 591 | 19 . . . . . . 284 . . . 38 250 Treads 427 | . . . . 167 112 72 76 . . . . . Legs 379 | 48 81 113 73 . . . 64 . . . . . Wheels . | . . . . . . . . . . . . . Hover . | . . . . . . . . . . . . . Flight 1258 | . . . . . . . 135 181 91 432 362 57 Fastest Speed 26 | 50 120 120 120 157 155 157 29 29 32 26 34 42 Average Speed 68 | 100 120 120 120 158 156 157 65 30 32 28 39 48 Slowest Speed 350 | 120 120 120 120 160 157 164 189 32 32 35 350 50 Overloaded Moves . | . . . . . . . . . . . . . Propulsion Burnouts . | . . . . . . . . . . . . . Robots Hopped 10 | . . . . . . . . 2 . 2 5 1 Potential Cave-ins . | . . . . . . . . . . . . . Cave-ins Triggered . | . . . . . . . . . . . . . Exploration Rate (%) 28 | 4 27 14 36 24 5 92 19 15 89 20 21 8 Regions Visited 12 Branch Regions 1 Pre-discovered Areas . | . . . . . . . . . . . . . Known Exits Taken 3 | . . . . . 1 . . . . 1 1 . Unknown Exits Taken 6 | 1 1 1 1 1 . . 1 . . . . . Scrap Searched . | . . . . . . . . . . . . . Spaces Dug . | . . . . . . . . . . . . . Terrain Destroyed 5 | . . . . 5 . . . . . . . . Melee . | . . . . . . . . . . . . . Projectile 5 | . . . . 5 . . . . . . . . AOE . | . . . . . . . . . . . . . Terrain Rammed . | . . . . . . . . . . . . . Walls Destroyed . | . . . . . . . . . . . . . Machines Disabled . | . . . . . . . . . . . . . Actions | -11 -10 -9 -9 -8 -7 -7 -6 -5 -5 -5 -4 -3 --------- Run | Yrd Mat Mat Min Mat Fac DSF Fac Fac Was Fac Fac Res Total 3180 | 84 88 159 76 366 128 87 679 184 90 457 400 382 Wait 295 | . 3 23 . 165 . . 44 . . 5 . 55 Move 2626 | 66 80 112 72 166 112 72 558 177 90 427 389 305 Hop 10 | . . . . . . . . 2 . 2 5 1 Pick Up 54 | 12 . 6 . 4 7 2 12 2 . 6 . 3 Fast Attach 2 | . . . . . . . 1 . . 1 . . Attach 53 | 6 . 2 . 8 8 2 14 1 . 6 4 2 Detach 3 | . . . . . . . 1 1 . . 1 . Swap 2 | . . . . . 1 . . . . 1 . . Drop 10 | . . 2 . 3 . . 2 1 . 1 1 . Fire 57 | . 5 14 4 20 . 10 4 . . . . . Melee 9 | . . . . . . . 1 . . 8 . . Ram 2 | . . . . . . . 1 . . . . 1 Kick 5 | . . . . . . . 5 . . . . . Crush 1 | . . . . . . 1 . . . . . . Escape Stasis 51 | . . . . . . . 36 . . . . 15 Rewire . | . . . . . . . . . . . . . Trap . | . . . . . . . . . . . . . Miscellaneous . | . . . . . . . . . . . . . Route ------- -11/Scrapyard -10/Materials -9/Materials -9/Mines -8/Materials -7/Factory -7/DSF -6/Factory -5/Factory -5/Waste -5/Factory -4/Factory -3/Research History --------- Turn | Location | Event 3 | -11/Scrapyard | Discovered new exit (range 16) 85 | -11/Scrapyard | Entered Materials 191 | -10/Materials | Discovered new exit (range 7) 199 | -10/Materials | Entered another Materials area 199 | -9/Materials | Evolved 2 slots: Propulsion x1, Weapon x1 359 | -9/Materials | Discovered new exit (range 15) 403 | -9/Materials | Entered Mines 495 | -9/Mines | Discovered new exit (range 5) 502 | -9/Mines | Entered Materials 502 | -8/Materials | Evolved 2 slots: Propulsion x2 856 | -8/Materials | Build established: Skirmisher 989 | -8/Materials | Discovered new exit (range 14) 1006 | -8/Materials | Entered Factory 1006 | -7/Factory | Evolved 2 slots: Propulsion x1, Weapon x1 1199 | -7/Factory | Identified exit to DSF 1199 | -7/Factory | Entered DSF 1243 | -7/DSF | Additional patrols routed to DSF 1328 | -7/DSF | Discovered new exit (range 14) 1351 | -7/DSF | Entered Factory 1351 | -6/Factory | Evolved 2 slots: Propulsion x2 1375 | -6/Factory | Lost 3 parts (1p2n) 1505 | -6/Factory | Lost 7 parts (4n3w) 1561 | -6/Factory | Lost 3 parts (3n) 1843 | -6/Factory | Discovered new exit (range 22) 1849 | -6/Factory | Entered another Factory area 1849 | -5/Factory | Evolved 2 slots: Propulsion x2 1908 | -5/Factory | Discovered new exit (range 21) 1909 | -5/Factory | Manually triggered Chute Trap 1909 | -5/Factory | Sucked down chute 1909 | -5/Factory | Entered Waste 1911 | -5/Waste | Spotted C-40 Crusher 1916 | -5/Waste | Spotted C-40 Crusher 1919 | -5/Waste | Spotted C-40 Crusher 1924 | -5/Waste | EMP discharged 1931 | -5/Waste | Spotted C-40 Crusher 1934 | -5/Waste | Spotted C-40 Crusher 1934 | -5/Waste | Spotted C-40 Crusher 1935 | -5/Waste | Discovered new exit (range 11) 1938 | -5/Waste | Identified exit to Factory 1938 | -5/Waste | Entered Factory 2056 | -5/Factory | Build established: Sprinter 2062 | -5/Factory | System corruption reached 10% 2070 | -5/Factory | Garrison activated, responded to threat 2101 | -5/Factory | Discovered new exit (range 4) 2102 | -5/Factory | Identified exit to Factory 2103 | -5/Factory | Entered another Factory area 2103 | -4/Factory | Evolved 2 slots: Utility x2 2259 | -4/Factory | Discovered new exit (range 15) 2260 | -4/Factory | Core integrity fell below 50% 2266 | -4/Factory | Identified exit to Research 2267 | -4/Factory | Entered Research 2267 | -3/Research | Evolved 2 slots: Power x2 2392 | -3/Research | Build established: Mutant 2407 | -3/Research | Spotted B-86 Titan 2482 | -3/Research | Core integrity fell below 50% 2486 | -3/Research | Lost 3 parts (2n1u) 2491 | -3/Research | Core integrity fell below 20% 2493 | -3/Research | Destroyed by H-77 Assassin with Coil Gun Last Messages --------------- 02437_ K-01 Serf destroyed. 02438_ K-01 Serf collects debris. 02440_ T-07 Excavator destroyed. 02441_ W-44 Eye sends out distress signal. 02442_ K-01 Serf collects debris. 02452_ Slug penetrates K-01 Serf. 02452_ K-01 Serf destroyed. 02452_ Penetrated by Slug. 02452_ Impulse Thruster Array destroyed. 02455_ Enh. Optical Array destroyed. 02481_ Acquired Adv. Cryofiber Web. 02483_ Slammed into S-43 Plague. 02483_ Slug penetrates Wall. 02487_ Slug penetrates H-77 Assassin. 02487_ Penetrated by Slug. 02487_ Slug penetrates Wall. 02487_ Penetrated by Slug. 02487_ Slug penetrates Wall. 02490_ S-43 Plague destroyed. 02490_ Penetrated by Slug. Map ----- +----------------------------------------------------+ | ######????????# #?????????????????????????????? | | ??????????????# #?????????????????????????????? | | ??????????????# ###+###########???????????????? | | ??????????????# #???????????????? | | ??????????????# #???????????????? | | ??????????????# #???????????????? | | ??????????????# #???????????????? | | ??????????????########+###### #???????????????? | | ??????????????????# """ # #???????????????? | | ??????????????????# """ # #???????????????? | | ??????????????????# """ # +???????????????? | | ??????????????????# # #???????????????? | | ??????????????????# # =%#???????????????? | | ??????????????????# # #???????????????? | | ??????????????????# =# #???????????????? | | ??????????????????# # #???????????????? | | ??????????????????########### #???????????????? | | ????????????????????????????# #???????????????? | | ????????????????????????????# #???????????????? | | ########????????????????????# #???????????????? | | ! ! #????????????????????#*= #???????????????? | | !!! #????????????????????#%| #???????????????? | | !! #????????????????????#=! #???????????????? | | ###########+########## %k##########+####?? | | #%= s Y k u #?? | | +*= s @ #?? | | #= h kk #?? | | # h h R #?? | | ####+######+###########+############ #?? | | #????????????????# #??????? #?? | | #????????????????# #???????????? | | #????????????????# """ """ ###### | | ########????????????????# """ """ + | | ????????????????????????# """ """ ## T## | | ????????????????????????# #???????????? | | ????????????????????????# = #???????????? | | ????????????????????????# [ #???????????? | | ????????????????????????# #???????????? | | ????????????????????????# !#???????????? | | ????????????????????????# """ """ #???????????? | | ????????????????????????# """S""" #???????????? | | ????????????????????????##############???????????? | | ?????????????????????????????????????????????????? | | ?????????????????????????????????????????????????? | | ?????????????????????????????????????????????????? | | ?????????????????????????????????????????????????? | | ?????????????????????????????????????????????????? | | ?????????????????????????????????????????????????? | | ?????????????????????????????????????????????????? | | ?????????????????????????????????????????????????? | +----------------------------------------------------+ Best States ------------- Heat Dissipation 46 Energy Generation 18 Energy Capacity 310 Matter Stores 300 Matter Capacity 300 Sight Range 22 Terrain Scan Density 10 Armor Coverage 225 Resistance: KI 30 Resistance: EM 25 Evasion (%) 64 Recoil Reduction 7 Item Schematics ----------------- None Robot Schematics ------------------ None Fabricated ------------ Nothing Repaired ---------- Nothing Alien Tech Used ----------------- None Achievements -------------- None Challenges ------------ None Game ------ Seed SapperCargoTether Manual? 0 Play Time 00:29:53 Cumulative 58.3 hours Start 2025.08.21 @ 16:52:26 End 2025.08.21 @ 17:34:47 Sessions 1 Manual Loads 0 Difficulty Rogue Special Mode None Game No. 144 Rogue 144 Adventurer 0 Explorer 0 Win Type - Total 1 Types 1/0/0/0/0/0/0/0/0/0 Lore% 22 Gallery% 39 Achievement% 35 Wizard Run 0 Options --------- Layout 0 ASCII 0 Keyboard 0 Movement Mouse Keybinds 0 Fullscreen 2 Font 18/SmallcapsGlow Map View 76x50 Zoom Use 0% Tactical HUD 1 Map Filters NONE Filters NONE Steam 1 RUN: 6e94e3ec-3591-4e31-b08b-6a949399650e